bitfinex/quotes_ETHUSD_20230117
["timestamp","ask_amount","ask_price","bid_price","bid_amount"]
[1673981011533,0.007,1593.2,1593.1,15.67074407]
[1673981011899,0.007,1593.2,1593.1,15.48674407]
[1673981012112,0.007,1593.2,1593.1,16.1234858]
[1673981012284,0.007,1593.2,1593.1,16.3534858]
[1673981012945,0.007,1593.2,1593.1,9.20968407]
[1673981013983,0.007,1593.2,1593.1,0.066]
[1673981013984,1.029,1593.2,1593.1,0.066]
[1673981014162,0.007,1593.2,1592.9,6.27778]
[1673981014522,0.007,1593.2,1592.9,15.73825407]
[1673981015116,0.007,1593.2,1593.1,12.55412]
[1673981015328,0.007,1593.2,1593.1,15.73674407]
[1673981015543,0.007,1593.2,1593.1,17.63074407]
[1673981016798,0.007,1593.2,1593.1,17.86074407]
[1673981017292,0.007,1593.2,1593.1,17.63074407]
[1673981017673,0.007,1593.2,1593.1,17.86074407]
[1673981018118,0.007,1593.2,1593.1,18.4974858]
[1673981018664,0.107,1593.2,1593.1,18.4974858]
[1673981020439,0.107,1593.2,1593.1,25.1494858]
[1673981021442,0.107,1593.2,1593.1,27.0154858]
[1673981022291,0.107,1593.2,1593.1,19.1074858]
[1673981022507,0.107,1593.2,1593.1,23.27180407]
[1673981024607,1e-08,1593.2,1593.1,23.27180407]
[1673981024808,1e-08,1593.2,1593.1,23.50180407]
[1673981025235,2.5747,1593.7,1593.3,18.82831]
[1673981025451,3.04917,1593.7,1593.3,18.89431]
[1673981026415,9.3259,1593.7,1593.3,6.34008]
[1673981026628,15.60463,1593.7,1593.3,0.066]
[1673981026808,1.560463,1593.6,1593.3,6.27626]
[1673981027007,1.560463,1593.6,1593.3,6.34226]
[1673981027226,0.4708,1593.5,1593.3,6.34226]
[1673981027482,0.4708,1593.5,1593.3,0.066]
[1673981027643,0.4708,1593.5,1593.2,12.62094999]
[1673981027850,0.4708,1593.5,1593.2,6.34442999]
[1673981028632,0.4708,1593.5,1593.2,12.62109999]
[1673981028835,7.7403083,1593.5,1593.2,6.34442999]
[1673981029046,7.7463083,1593.5,1593.2,6.34442999]
[1673981029645,1.4707683,1593.5,1593.2,6.34442999]
[1673981029858,1.4647683,1593.5,1593.2,6.34442999]
[1673981030269,14.0158083,1593.5,1593.2,0.06799999]
[1673981030485,1.29891952,1593.4,1593.2,0.00199999]
[1673981031643,7.57484952,1593.4,1593.2,0.00199999]
[1673981031852,13.85677952,1593.4,1593.2,0.00199999]
[1673981032097,20.13270952,1593.4,1593.2,0.00199999]
[1673981032749,13.85677952,1593.4,1593.2,0.00199999]
[1673981033352,1.38567795,1593.3,1593.2,0.00199999]
[1673981033575,20.19302952,1593.4,1593.2,0.00199999]
[1673981033747,20.13302952,1593.4,1593.2,0.00199999]
[1673981036182,7.58084952,1593.4,1593.2,0.00199999]
[1673981036367,6.28193,1593.4,1593.2,0.00199999]
[1673981039259,0.006,1593.4,1593.2,6.27861999]
[1673981039431,12.5573,1593.5,1593.2,6.34461999]
[1673981039642,12.5573,1593.5,1593.2,0.06799999]
[1673981039865,12.5573,1593.5,1593.2,0.00199999]
[1673981040074,14.493629,1593.5,1593.2,0.00199999]
[1673981041136,20.769379,1593.5,1593.2,0.00199999]
[1673981041352,0.4708,1593.4,1593.2,0.00199999]
[1673981041570,12.55256,1593.3,1593.2,0.00199999]
[1673981041880,12.55856,1593.3,1593.2,0.00199999]
[1673981042094,14.495123,1593.3,1593.2,0.00199999]
[1673981042459,1.942563,1593.3,1593.2,0.00199999]
[1673981042671,1.936563,1593.3,1593.2,0.00199999]
[1673981042914,20.765403,1593.3,1593.2,0.00199999]
[1673981043145,20.771403,1593.3,1593.2,0.00199999]
[1673981043596,14.495123,1593.3,1593.2,0.00199999]
[1673981044934,2.079,1593.3,1593.2,0.00199999]
[1673981045086,2.073,1593.3,1593.2,0.00199999]
[1673981045546,0.4708,1593.4,1593.2,0.00199999]
[1673981045890,0.4708,1593.4,1593.2,6.27864999]
[1673981046069,6.81247,1593.5,1593.2,6.34464999]
[1673981046241,6.75247,1593.5,1593.2,6.34464999]
[1673981047712,10.760288,1593.5,1593.2,6.34464999]
[1673981048499,10.760288,1593.5,1593.2,0.06799999]
[1673981048717,17.035778,1593.5,1593.2,0.00199999]
[1673981048885,24.71715373,1593.5,1593.2,0.00199999]
[1673981049086,2.47171537,1593.4,1593.2,0.00199999]
[1673981049297,8.74775537,1593.4,1593.2,0.00199999]
[1673981049508,8.75375537,1593.4,1593.2,0.00199999]
[1673981049750,15.02979537,1593.4,1593.2,0.00199999]
[1673981050133,21.30583537,1593.4,1593.2,0.00199999]
[1673981050378,9.40686354,1593.3,1593.2,0.00199999]
[1673981050609,24.61859341,1593.3,1593.2,0.00199999]
[1673981050825,28.99124361,1593.3,1593.2,0.00199999]
[1673981051152,31.30513183,1593.3,1593.2,0.00199999]
[1673981051288,29.44648163,1593.3,1593.2,0.00199999]
[1673981052254,31.32532044,1593.3,1593.2,0.00199999]
[1673981053131,28.01143222,1593.3,1592.7,6.27863]
[1673981053282,4.38953204,1593.2,1592.7,6.37763919]
[1673981053651,12.55452,1593.1,1592.7,6.37763919]
[1673981053821,13.03142,1593.1,1592.7,6.37763919]
[1673981055928,13.03142,1593.1,1592.7,0.09900919]
[1673981056230,19.30868,1593.1,1592.7,0.03300919]
[1673981057227,20.56568,1593.1,1592.7,0.03300919]
[1673981057398,23.68230407,1593.1,1592.6,2.49610156]
[1673981057608,23.68230407,1593.1,1592.6,2.43010156]
[1673981057824,2.36823041,1593.0,1592.6,2.43010156]
[1673981058034,6.27793,1592.9,1592.6,2.43010156]
[1673981058250,6.28393,1592.9,1592.6,2.43010156]
[1673981058554,12.56186,1592.9,1592.6,2.43010156]
[1673981059203,0.006,1592.9,1592.6,2.43010156]
[1673981059413,13.03146,1593.1,1592.7,0.24301016]
[1673981059605,18.83793,1593.1,1592.7,6.27845]
[1673981059806,0.006,1593.1,1592.7,9.46107407]
[1673981060013,17.61234,1593.3,1592.7,23.9040958]
[1673981060226,23.82884,1593.3,1592.7,23.9040958]
[1673981060555,23.82884,1593.3,1592.7,25.91516812]
[1673981060750,23.82884,1593.3,1592.8,1.55731732]
[1673981060955,23.82884,1593.3,1592.9,6.27766]
[1673981061166,6.2825,1593.3,1592.9,12.62151]
[1673981061430,6.7534,1593.3,1592.9,12.62151]
[1673981061748,6.7534,1593.3,1592.9,12.61951]
[1673981061918,6.2825,1593.3,1592.9,12.62151]
[1673981062111,6.2825,1593.3,1592.9,18.89936]
[1673981062323,0.006,1593.3,1593.0,3.11968492]
[1673981062547,41.67740822,1593.6,1593.0,4.37668492]
[1673981062907,41.61740822,1593.6,1593.1,18.83075]
[1673981063066,1.40897941,1593.5,1593.1,12.61974]
[1673981063268,12.47375123,1593.5,1593.1,0.066]
[1673981063479,26.28774123,1593.5,1593.0,6.34648085]
[1673981063940,1.40897941,1593.4,1593.0,0.06906085]
[1673981064267,6.27636,1593.3,1592.9,6.34366]
[1673981064481,6.27636,1593.3,1592.9,18.89936]
[1673981064482,0.006,1593.3,1592.9,18.89936]
[1673981064692,7.53796,1593.4,1592.9,18.89936]
[1673981064845,1.41497941,1593.4,1592.9,18.89936]
[1673981065055,1.47497941,1593.5,1593.0,3.11662407]
[1673981065323,25.60514348,1593.5,1592.9,18.89936]
[1673981065536,0.4708,1593.4,1592.9,12.62151]
[1673981065750,12.55221,1593.4,1592.9,12.62151]
[1673981066053,0.006,1593.4,1593.0,3.11662407]
[1673981066285,1.93977941,1593.5,1593.1,12.55398]
[1673981066286,3.28781822,1593.5,1593.1,12.55398]
[1673981066578,3.28781822,1593.5,1593.1,12.61998]
[1673981066579,1.40897941,1593.5,1593.1,12.61998]
[1673981066895,3.28781822,1593.5,1593.1,12.61998]
[1673981067066,1.40897941,1593.5,1593.1,12.61998]
[1673981067954,7.68447941,1593.5,1593.1,12.61998]
[1673981068102,7.69047941,1593.5,1593.1,12.61998]
[1673981068520,7.69047941,1593.5,1593.1,18.89704]
[1673981068844,1.41497941,1593.5,1593.1,18.89704]
[1673981069212,1.40897941,1593.5,1593.1,18.89704]
[1673981069728,7.68449941,1593.5,1593.1,18.89704]
[1673981069892,25.84867905,1593.5,1593.1,0.066]
[1673981070105,1.40897941,1593.4,1593.0,0.066]
[1673981070314,12.55292,1593.3,1592.9,6.37215929]
[1673981070566,12.55892,1593.3,1592.9,6.37215929]
[1673981070755,13.96789941,1593.3,1592.9,6.37215929]
[1673981070967,16.31119523,1593.3,1592.9,6.37215929]
[1673981073106,8.62574582,1593.3,1592.9,18.92785929]
[1673981073305,6.28245,1593.3,1592.9,18.92785929]
[1673981074791,20.24436941,1593.3,1592.9,0.066]
[1673981074994,21.49736941,1593.3,1592.8,6.34404]
[1673981075305,1.257,1593.2,1592.8,0.066]
[1673981075521,1.257,1593.2,1592.7,6.34441]
[1673981075522,18.83139,1593.1,1592.7,6.34441]
[1673981075672,18.83739,1593.1,1592.7,6.34441]
[1673981076988,18.83739,1593.1,1592.7,0.066]
[1673981077196,18.83739,1593.1,1592.6,13.54780208]
[1673981077510,6.27785,1592.9,1592.7,1.55746105]
[1673981077724,6.27785,1592.9,1592.6,0.066]
[1673981077725,17.17824153,1592.9,1592.6,0.066]
[1673981077880,10.90039153,1592.9,1592.5,21.2133652]
[1673981078089,10.90039153,1592.9,1592.6,1.55748287]
[1673981078998,10.90039153,1592.9,1592.5,0.066]
[1673981078999,1.257,1592.8,1592.5,0.066]
[1673981079297,6.27864,1592.7,1592.4,0.09580104]
[1673981079454,6.28464,1592.7,1592.4,0.02980104]
[1673981079874,8.40947692,1592.7,1592.4,0.02980104]
[1673981080080,14.68811692,1592.7,1592.4,1.58752421]
[1673981080340,14.68811692,1592.7,1592.4,0.02980104]
[1673981080341,22.21075692,1592.7,1592.4,0.02980104]
[1673981080664,13.81586,1592.5,1592.4,0.02980104]
[1673981080878,13.82186,1592.5,1592.4,0.02980104]
[1673981081088,16.19674841,1592.5,1592.4,0.02980104]
[1673981081451,19.31337248,1592.5,1592.4,0.02980104]
[1673981081664,25.59280248,1592.5,1592.4,0.02980104]
[1673981082447,13.82186,1592.5,1592.4,0.02980104]
[1673981082600,2.079,1592.5,1592.4,0.02980104]
[1673981082812,2.073,1592.5,1592.4,0.02980104]
[1673981083482,18.99648407,1592.5,1592.4,0.02980104]
[1673981083820,25.28191407,1592.5,1592.4,0.02980104]
[1673981084032,27.86321548,1592.5,1592.4,0.02980104]
[1673981084603,26.61521548,1592.5,1592.4,0.02980104]
[1673981085078,17.21916141,1592.5,1592.4,0.02980104]
[1673981085666,23.49859141,1592.5,1592.4,0.02980104]
[1673981086139,24.75559141,1592.5,1592.4,0.02980104]
[1673981086934,23.49859141,1592.5,1592.4,0.02980104]
[1673981087195,17.21916141,1592.5,1592.4,0.02980104]
[1673981087770,23.49859141,1592.5,1592.4,0.02980104]
[1673981088662,27.86321548,1592.5,1592.4,0.02980104]
[1673981089243,1.0,1592.4,1592.3,0.03016603]
[1673981089482,28.72130562,1592.4,1592.3,0.03016603]
[1673981089696,27.72730562,1592.4,1592.3,0.03016603]
[1673981090115,26.47430562,1592.4,1592.3,0.03016603]
[1673981090514,24.28246779,1592.4,1592.3,0.03016603]
[1673981090728,23.81136779,1592.4,1592.3,0.03016603]
[1673981090944,24.28246779,1592.4,1592.3,0.03016603]
[1673981091165,25.53946779,1592.4,1592.3,0.03016603]
[1673981092989,24.28246779,1592.4,1592.3,0.03016603]
[1673981093340,21.62958155,1592.4,1592.3,0.03016603]
[1673981093703,25.21730562,1592.4,1592.3,0.03016603]
[1673981095721,26.46330562,1592.4,1592.3,0.03016603]
[1673981097205,25.99220562,1592.4,1592.3,0.03016603]
[1673981097710,27.71930562,1592.4,1592.3,0.03016603]
[1673981098267,1.0,1592.3,1592.0,0.99648451]
[1673981098475,2.505,1592.1,1592.0,0.99648451]
[1673981098683,30.74566407,1592.1,1592.0,0.99648451]
[1673981098867,30.75166407,1592.1,1592.0,0.99648451]
[1673981100212,23.22265407,1592.1,1592.0,0.99648451]
[1673981100339,21.96565407,1592.1,1592.0,0.99648451]
[1673981100763,18.84903,1592.1,1592.0,0.99648451]
[1673981101175,20.874933,1592.1,1592.0,0.99648451]
[1673981101438,23.99155707,1592.1,1592.0,0.99648451]
[1673981101802,11.92787554,1592.1,1592.0,0.99648451]
[1673981102016,11.92787554,1592.1,1592.0,7.27788451]
[1673981102017,2.421,1592.1,1592.0,7.27788451]
[1673981102275,2.415,1592.1,1592.0,7.34388451]
[1673981102496,2.415,1592.1,1592.0,1.06248451]
[1673981102728,2.415,1592.1,1592.0,0.99648451]
[1673981104070,2.415,1592.1,1592.0,7.27788451]
[1673981104388,2.415,1592.1,1592.0,13.62528451]
[1673981104539,2.415,1592.1,1592.0,1.06248451]
[1673981104750,2.415,1592.1,1592.0,0.99648451]
[1673981105376,2.415,1592.1,1592.0,1.99648451]
[1673981105587,2.415,1592.1,1592.0,20.84068451]
[1673981105802,0.066,1592.4,1592.1,0.07780599]
[1673981106113,6.27947,1592.5,1592.1,12.63944599]
[1673981106357,6.28547,1592.5,1592.1,12.70544599]
[1673981106571,3.11662407,1592.4,1592.1,0.14380599]
[1673981106743,12.56044,1592.3,1592.1,0.07780599]
[1673981106957,12.56644,1592.3,1592.1,0.07780599]
[1673981107382,6.28622,1592.3,1592.1,0.07780599]
[1673981107593,0.006,1592.3,1592.1,0.07780599]
[1673981107812,6.28036,1592.3,1592.1,0.07780599]
[1673981108065,6.28636,1592.3,1592.1,0.07780599]
[1673981109003,13.829367,1592.3,1592.1,0.07780599]
[1673981109154,20.109727,1592.3,1592.1,0.07780599]
[1673981109615,21.359727,1592.3,1592.1,0.07780599]
[1673981110223,24.47635107,1592.3,1592.1,0.07780599]
[1673981110446,24.94755107,1592.3,1592.1,0.07780599]
[1673981110649,2.49475511,1592.2,1592.1,0.07780599]
[1673981110862,18.84183,1592.2,1592.1,0.07780599]
[1673981111075,18.84783,1592.2,1592.1,0.07780599]
[1673981112750,21.96445407,1592.2,1592.1,0.07780599]
[1673981112965,23.22145407,1592.2,1592.1,0.07780599]
[1673981113160,19.84303,1592.1,1592.0,0.99648451]
[1673981113365,26.80179948,1592.1,1592.0,8.451e-05]
[1673981113575,27.43854121,1592.1,1591.5,0.03810223]
[1673981113836,18.84681,1591.8,1591.5,0.03810223]
[1673981114161,1.257,1591.6,1591.5,0.03810223]
[1673981114322,13.82296,1591.6,1591.5,0.03810223]
[1673981114526,13.82896,1591.6,1591.5,0.03810223]
[1673981114938,16.94558407,1591.6,1591.5,0.03810223]
[1673981115952,18.19058407,1591.6,1591.3,0.0052762]
[1673981116101,1.246,1591.4,1591.3,0.0052762]
[1673981116311,23.21393407,1591.4,1591.3,0.0052762]
[1673981116514,23.21993407,1591.4,1591.3,0.0052762]
[1673981120318,24.94533407,1591.4,1591.3,0.0052762]
[1673981120525,27.94533407,1591.4,1591.3,0.0002762]
[1673981120776,45.13194332,1591.4,1591.3,0.0002762]
[1673981121354,45.13194332,1591.4,1591.0,0.01864063]
[1673981121355,1.0,1591.3,1591.0,0.01864063]
[1673981121564,1.257,1591.1,1591.0,0.01864063]
[1673981121792,16.94354407,1591.1,1591.0,0.01864063]
[1673981122014,15.69254408,1591.1,1591.0,0.01864063]
[1673981122349,24.30691449,1591.1,1591.0,0.01864063]
[1673981122932,12.57592,1591.1,1591.0,0.01864063]
[1673981123304,21.97750407,1591.1,1591.0,0.01864063]
[1673981125175,23.23450407,1591.1,1591.0,0.01864063]
[1673981125670,26.23450407,1591.1,1591.0,0.01864063]
[1673981125879,1.0,1591.0,1590.8,0.03511022]
[1673981126249,23.32687407,1590.9,1590.8,0.03511022]
[1673981126437,15.79412407,1590.9,1590.8,0.03511022]
[1673981126611,22.07987407,1590.9,1590.8,0.03511022]
[1673981126824,0.006,1590.9,1590.8,0.03511022]
[1673981127033,6.29168,1591.0,1590.8,0.03511022]
[1673981127506,12.57736,1591.0,1590.8,0.03511022]
[1673981127675,18.28536,1591.0,1590.8,0.03511022]
[1673981128351,24.57104,1591.0,1590.8,0.03511022]
[1673981128560,27.034144,1591.0,1590.8,0.03511022]
[1673981128714,3.11662407,1590.9,1590.8,0.03511022]
[1673981129134,21.97387407,1590.9,1590.8,0.03511022]
[1673981129361,21.97987407,1590.9,1590.8,0.03511022]
[1673981129591,23.23687407,1590.9,1590.8,0.03511022]
[1673981129804,28.20525988,1590.9,1590.8,0.03511022]
[1673981130605,30.74108858,1590.9,1590.8,0.03511022]
[1673981130870,31.99508858,1590.9,1590.8,0.03511022]
[1673981131392,31.99508858,1590.9,1590.5,0.0360839]
[1673981131393,19.85842,1590.8,1590.5,0.0360839]
[1673981131607,26.40472,1590.6,1590.5,0.0360839]
[1673981131756,29.52734407,1590.6,1590.5,0.0360839]
[1673981133037,30.78334407,1590.6,1590.3,1.0956051]
[1673981133280,18.86316,1590.4,1590.3,1.0956051]
[1673981133442,19.49013964,1590.4,1590.3,1.0956051]
[1673981133654,23.4496126,1590.4,1590.3,1.0956051]
[1673981133917,22.1996126,1590.4,1590.3,1.0956051]
[1673981134593,26.9163126,1590.4,1590.3,1.0956051]
[1673981135394,26.9163126,1590.4,1590.1,0.0160627]
[1673981135395,1.0,1590.3,1590.1,0.0160627]
[1673981135552,29.52666407,1590.2,1590.0,0.05566151]
[1673981135761,7.32229048,1590.1,1590.0,0.05566151]
[1673981136124,30.70161048,1590.1,1590.0,0.05566151]
[1673981137141,6.29491,1590.1,1590.0,0.05566151]
[1673981137350,12.58382,1590.1,1590.0,0.05566151]
[1673981137961,15.70044407,1590.1,1590.0,0.05566151]
[1673981138353,18.87273,1590.1,1590.0,0.05566151]
[1673981138507,23.56573001,1590.1,1590.0,0.05566151]
[1673981138720,29.79907808,1590.1,1590.0,0.05566151]
[1673981138934,31.04507808,1590.1,1590.0,0.05566151]
[1673981140110,31.04507808,1590.1,1589.5,0.05955427]
[1673981140111,1.0,1590.0,1589.5,0.05955427]
[1673981140321,1.257,1589.8,1589.5,0.05955427]
[1673981140658,21.98809407,1589.7,1589.5,0.05955427]
[1673981140821,24.31860348,1589.7,1589.5,0.05955427]
[1673981141026,3.11662407,1589.6,1589.5,0.05955427]
[1673981141240,21.98929407,1589.6,1589.5,0.05955427]
[1673981141452,21.99529407,1589.6,1589.5,0.05955427]
[1673981141661,18.87867,1589.6,1589.5,0.05955427]
[1673981141859,17.2141683,1589.6,1589.5,0.05955427]
[1673981142745,17.2141683,1589.6,1589.2,0.05955427]
[1673981142746,25.43270914,1589.6,1589.2,0.05955427]
[1673981142998,3.11662407,1589.5,1589.2,0.05955427]
[1673981143173,12.58336,1589.4,1589.2,0.05955427]
[1673981143344,6.29207,1589.3,1589.2,0.05955427]
[1673981143546,0.006,1589.3,1589.2,0.05955427]
[1673981143758,22.05203407,1589.4,1589.2,0.05955427]
[1673981143759,0.006,1589.4,1589.3,0.01309379]
[1673981143972,6.29049,1589.7,1589.3,1.3013586]
[1673981143973,12.58727,1589.7,1589.3,1.3013586]
[1673981144182,15.70389407,1589.7,1589.3,1.3013586]
[1673981144438,15.70389407,1589.7,1589.3,1.06409379]
[1673981144746,6.29649,1589.7,1589.3,2.32109379]
[1673981144961,0.006,1589.7,1589.5,1.248]
[1673981145274,0.006,1589.8,1589.5,1.248]
[1673981145511,35.151624,1590.1,1589.5,1.248]
[1673981145512,35.157624,1590.1,1589.5,1.248]
[1673981145691,35.157624,1590.1,1589.5,0.02741697]
[1673981146011,7.87638647,1590.0,1589.3,0.01309379]
[1673981146162,4.37362407,1589.9,1589.3,0.01309379]
[1673981146371,3.11662407,1589.8,1589.3,0.01309379]
[1673981146581,3.11662407,1589.7,1589.3,0.01309379]
[1673981147422,3.11662407,1589.7,1589.3,0.2452586]
[1673981147947,3.11662407,1589.7,1589.3,0.01309379]
[1673981148165,3.11662407,1589.6,1589.3,0.01309379]
[1673981148432,3.11662407,1589.5,1589.3,0.01309379]
[1673981148740,3.11662407,1589.4,1589.3,0.01309379]
[1673981148955,0.066,1589.6,1589.4,2.49718598]
[1673981148956,3.11662407,1589.5,1589.4,2.49718598]
[1673981149168,3.72594,1589.6,1589.4,2.49718598]
[1673981149472,6.77656407,1589.6,1589.4,2.49718598]
[1673981149629,3.12262407,1589.6,1589.4,2.49718598]
[1673981149846,3.11662407,1589.6,1589.4,2.49718598]
[1673981151127,0.066,1589.8,1589.4,2.52604359]
[1673981151349,33.8215,1589.9,1589.5,1.253]
[1673981151519,0.006,1589.9,1589.6,0.1253]
[1673981151725,3.0,1590.1,1589.6,0.1253]
[1673981151939,6.11662407,1590.1,1589.6,0.15415399]
[1673981152184,6.12262407,1590.1,1589.6,0.10415399]
[1673981152404,10.09518648,1590.1,1589.6,0.10415399]
[1673981154083,3.11662407,1590.0,1589.4,2.56318598]
[1673981154277,3.11662407,1589.9,1589.4,2.49718598]
[1673981154619,1.7288,1590.0,1589.4,2.49718598]
[1673981154620,3.11662407,1589.8,1589.4,2.49718598]
[1673981154836,3.11662407,1589.7,1589.4,2.49718598]
[1673981155049,0.1096,1589.5,1589.4,2.49718598]
[1673981155408,2.366,1589.9,1589.5,0.12519764]
[1673981155725,8.48262407,1589.9,1589.5,0.12519764]
[1673981155944,8.48862407,1589.9,1589.5,0.12519764]
[1673981156382,6.12262407,1589.9,1589.5,0.12519764]
[1673981156597,3.006,1589.9,1589.5,0.15268295]
[1673981156827,3.0,1589.9,1589.5,0.15268295]
[1673981157023,3.5378,1590.0,1589.5,0.15268295]
[1673981157233,7.33946031,1590.0,1589.5,0.15268295]
[1673981157420,7.34546031,1590.0,1589.5,0.15268295]
[1673981158560,3.11662407,1589.9,1589.5,0.15268295]
[1673981159233,0.4719,1589.8,1589.5,0.15268295]
[1673981160935,0.4719,1589.9,1589.5,0.15268295]
[1673981161749,4.22283624,1590.0,1589.5,0.15268295]
[1673981161954,6.09733818,1590.0,1589.5,0.15268295]
[1673981162165,6.10333818,1590.0,1589.5,0.15268295]
[1673981162593,4.34546031,1590.0,1589.5,0.15268295]
[1673981162823,4.33946031,1590.0,1589.5,0.15268295]
[1673981164045,3.86766031,1590.0,1589.5,1.15268295]
[1673981164251,3.11662407,1590.0,1589.6,0.11526829]
[1673981165656,0.5378,1590.1,1589.7,0.00274442]
[1673981165817,33.609,1590.2,1589.7,1.24874442]
[1673981166023,33.609,1590.2,1589.8,1.12487444]
[1673981166024,33.0772,1590.2,1589.8,1.12487444]
[1673981166275,33.0772,1590.2,1589.8,0.12487444]
[1673981166613,33.0772,1590.2,1589.8,1.12487444]
[1673981166782,33.0772,1590.2,1589.8,0.12487444]
[1673981166967,10.7538,1590.2,1589.8,0.12487444]
[1673981167172,10.7538,1590.2,1589.8,1.12487444]
[1673981167492,10.7538,1590.2,1589.9,0.11248744]
[1673981167698,10.7538,1590.2,1589.8,0.12487444]
[1673981169081,10.7538,1590.2,1589.8,1.12487444]
[1673981169288,10.7538,1590.2,1589.9,0.02363496]
[1673981170155,3.11662407,1590.1,1589.6,0.98988208]
[1673981170492,11.2256,1590.2,1589.5,2.39572062]
[1673981170493,10.34943431,1590.2,1589.5,2.39572062]
[1673981170815,14.52861838,1590.2,1589.6,1.79985578]
[1673981171030,14.52861838,1590.2,1589.6,1.23957206]
[1673981171238,14.52861838,1590.2,1589.7,1.56027513]
[1673981172360,3.11662407,1590.1,1589.5,0.21483854]
[1673981172571,3.11662407,1590.0,1589.5,0.14883854]
[1673981172786,3.58842407,1590.0,1589.5,0.14883854]
[1673981174248,0.4718,1590.0,1589.5,1.07272062]
[1673981174510,0.4718,1590.0,1589.5,4.0188981]
[1673981174717,0.4718,1590.0,1589.6,2.48423644]
[1673981175141,0.066,1590.1,1589.7,2.26339615]
[1673981175142,0.4718,1590.1,1589.7,2.26339615]
[1673981175302,9.87763431,1590.2,1589.8,1.246]
[1673981175523,9.81763431,1590.2,1589.8,1.246]
[1673981175737,9.81763431,1590.2,1589.9,1.3786]
[1673981175940,9.81763431,1590.2,1589.9,1.38499534]
[1673981176150,0.006,1590.2,1589.9,1.38499534]
[1673981176399,0.4717,1590.3,1589.9,1.38499534]
[1673981176731,3.4924673,1590.3,1589.9,0.00639534]
[1673981176900,5.30325639,1590.2,1589.6,0.066]
[1673981177111,0.006,1590.2,1589.7,0.00639615]
[1673981177324,4.31847555,1590.3,1589.7,0.25545527]
[1673981177551,4.31247555,1590.3,1589.7,2.73956228]
[1673981177745,4.31247555,1590.3,1589.8,1.56022493]
[1673981177948,3.37584323,1590.3,1589.8,1.56022493]
[1673981178159,3.37584323,1590.3,1589.8,1.83418116]
[1673981178405,3.37584323,1590.3,1589.8,0.27395623]
[1673981178615,0.37584323,1590.3,1589.9,0.01669762]
[1673981178942,23.37563232,1590.4,1589.9,0.01669762]
[1673981178943,22.439,1590.4,1590.1,1.257]
[1673981179091,22.439,1590.4,1590.0,4.37362407]
[1673981179092,0.006,1590.4,1590.0,4.37362407]
[1673981179299,10.8786303,1590.5,1590.1,5.11389566]
[1673981179510,10.8786303,1590.5,1590.1,3.61998648]
[1673981179721,10.8786303,1590.5,1590.1,3.55398648]
[1673981180201,10.8786303,1590.5,1590.2,3.1766]
[1673981180512,10.8786303,1590.5,1590.4,1.246]
[1673981180747,0.0170303,1590.5,1590.4,4.71722407]
[1673981181037,0.0170303,1590.5,1590.3,1.317]
[1673981181038,0.0110303,1590.5,1590.3,1.317]
[1673981181197,0.0110303,1590.5,1590.2,1.0]
[1673981182291,0.0110303,1590.5,1590.3,1.254]
[1673981185656,0.0110303,1590.5,1590.4,1.248]
[1673981187865,1e-08,1590.5,1590.4,1.248]
[1673981188074,1e-08,1590.5,1590.4,4.49086615]
[1673981188238,1e-08,1590.5,1590.4,9.61460788]
[1673981188442,1e-08,1590.5,1590.4,9.68060788]
[1673981188695,1e-08,1590.5,1590.4,9.86250788]
[1673981189085,1e-08,1590.5,1590.4,9.22576615]
[1673981190053,1e-08,1590.5,1590.4,9.04186615]
[1673981190233,1e-08,1590.5,1590.4,9.04386615]
[1673981190440,1e-08,1590.5,1590.4,9.90710788]
[1673981190838,20.8652,1590.8,1590.5,0.002]
[1673981191051,20.8652,1590.8,1590.7,1.257]
[1673981191236,0.006,1590.8,1590.7,5.60362407]
[1673981191430,0.21201509,1590.9,1590.7,8.66962407]
[1673981191431,0.15201509,1590.9,1590.7,8.66962407]
[1673981191650,0.15201509,1590.9,1590.8,1.257]
[1673981193641,0.15201509,1590.9,1590.8,5.37362407]
[1673981193874,0.15201509,1590.9,1590.8,6.23658648]
[1673981194083,0.15201509,1590.9,1590.8,6.18658648]
[1673981194470,0.15201509,1590.9,1590.8,6.20100276]
[1673981195302,11.0759,1591.2,1590.9,1.0]
[1673981195614,11.0759,1591.2,1591.1,2.505]
[1673981195615,0.006,1591.2,1591.1,2.505]
[1673981195831,0.006,1591.3,1591.1,25.70650407]
[1673981196073,0.006,1591.6,1591.2,24.47630407]
[1673981196401,0.63725548,1591.7,1591.5,7.53638]
[1673981196623,0.63725548,1591.7,1591.5,7.60238]
[1673981196841,0.63725548,1591.7,1591.5,6.34938]
[1673981197138,0.16595548,1591.7,1591.6,1.246]
[1673981197295,0.16595548,1591.7,1591.6,20.09494]
[1673981197506,0.16595548,1591.7,1591.6,13.87796]
[1673981197975,0.16595548,1591.7,1591.6,0.066]
[1673981198212,0.16595548,1591.7,1591.5,7.60638]
[1673981198982,0.16595548,1591.7,1591.6,1.248]
[1673981199432,0.16595548,1591.7,1591.6,23.21356407]
[1673981199625,0.16595548,1591.7,1591.6,23.50956407]
[1673981201349,0.16595548,1591.7,1591.6,24.76656407]
[1673981202269,0.16595548,1591.7,1591.6,27.76656407]
[1673981203119,0.16595548,1591.7,1591.6,27.90056407]
[1673981203315,0.16595548,1591.7,1591.6,27.76656407]
[1673981203701,0.00095548,1591.7,1591.6,27.76656407]
[1673981203959,0.00095548,1591.7,1591.6,34.2036058]
[1673981204126,0.00095548,1591.7,1591.6,34.0553058]
[1673981204599,0.00095548,1591.7,1591.6,28.4093058]
[1673981205336,0.00095548,1591.7,1591.6,35.0613058]
[1673981205545,3.4711,1592.5,1591.9,25.12704]
[1673981205701,0.4711,1592.5,1592.1,18.84258]
[1673981205944,19.30946,1592.5,1592.1,0.03459]
[1673981206155,19.30946,1592.5,1591.9,6.28174]
[1673981206156,6.28028,1592.3,1591.9,6.28174]
[1673981206413,6.28628,1592.3,1591.9,6.37692]
[1673981206604,0.4712,1592.2,1591.9,6.37692]
[1673981206817,13.03243,1592.2,1591.9,0.09518]
[1673981207029,19.31905,1592.2,1591.8,0.09518]
[1673981207243,14.494275,1592.1,1591.7,0.09518]
[1673981207455,6.2818,1591.9,1591.6,0.09518]
[1673981207787,12.5696,1591.9,1591.4,18.94554]
[1673981208100,12.5196,1591.9,1591.4,18.96759604]
[1673981208262,14.531423,1591.9,1591.4,18.96759604]
[1673981209056,14.531423,1591.9,1591.4,0.11723604]